bitfinex/quotes_ETHUSD_20241022
["timestamp","ask_amount","ask_price","bid_price","bid_amount"]
[1729564940382,0.7892,2643.8,2643.7,0.05154801]
[1729564941036,4.57163,2643.8,2643.7,0.05154801]
[1729564941237,5.19371622,2643.8,2643.7,0.05154801]
[1729564941435,5.19371622,2643.8,2643.5,1.64923223]
[1729564941663,4.57163,2643.8,2643.7,0.05056633]
[1729564941838,4.57163,2643.8,2643.5,1.64923223]
[1729564942039,0.7892,2643.8,2643.5,1.64923223]
[1729564942284,0.7892,2643.8,2643.7,1.64923223]
[1729564942635,0.77,2644.0,2643.7,1.64923223]
[1729564942841,4.55215,2644.0,2643.7,0.05056633]
[1729564945778,3.78243,2643.8,2643.7,0.05056633]
[1729564945981,3.78243,2643.8,2643.5,1.64923223]
[1729564946342,3.78243,2643.8,2643.6,0.05056633]
[1729564948799,3.78243,2643.8,2643.6,1.69979856]
[1729564948963,3.78243,2643.8,2643.6,0.05056633]
[1729564949301,8.33441,2644.0,2643.7,1.64923223]
[1729564949498,8.33441,2644.0,2643.6,1.69979856]
[1729564949499,4.55222,2644.0,2643.6,1.69979856]
[1729564950968,3.78231,2643.9,2643.6,0.05056633]
[1729564951165,4.55222,2644.0,2643.6,1.69979856]
[1729564952700,4.57244,2644.2,2643.8,1.64923223]
[1729564952915,3.78202,2644.1,2643.8,1.64923223]
[1729564953110,8.35443,2644.2,2643.9,0.05056633]
[1729564953458,8.35441,2644.2,2643.9,0.05056633]
[1729564953884,3.782,2644.1,2643.9,0.05056633]
[1729564954701,3.78179,2644.3,2644.0,1.64923223]
[1729564955015,3.78179,2644.3,2644.1,0.05049783]
[1729564955221,3.78186,2644.2,2643.8,1.64923223]
[1729564955376,3.78186,2644.2,2643.8,2.26775445]
[1729564956415,3.78186,2644.2,2643.8,1.64923223]
[1729564956716,4.54016,2644.0,2643.6,2.40273223]
[1729564958819,4.54016,2644.0,2643.7,1.64923223]
[1729564959315,4.54016,2644.0,2643.6,2.40273223]
[1729564959819,0.758,2644.0,2643.6,6.18545223]
[1729564960024,0.758,2644.0,2643.6,7.18227245]
[1729564962436,0.758,2644.0,2643.7,1.64923223]
[1729564962590,0.758,2644.0,2643.6,7.18227245]
[1729564963136,0.758,2644.0,2643.6,3.39955245]
[1729564964736,0.758,2644.0,2643.6,7.18223245]
[1729564965213,0.758,2644.0,2643.6,3.39955245]
[1729564966044,0.758,2644.0,2643.6,7.18224245]
[1729564966503,0.758,2644.0,2643.6,3.39955245]
[1729564967850,0.758,2644.0,2643.7,0.05050543]
[1729564968337,0.35293844,2643.9,2643.7,0.05050543]
[1729564968543,0.758,2644.0,2643.7,0.05050543]
[1729564968747,0.35293347,2643.9,2643.7,0.05050543]
[1729564968903,3.78237,2643.9,2643.7,0.05050543]
[1729564969240,0.35312646,2643.8,2643.4,6.23582223]
[1729564969412,4.13569646,2643.7,2643.4,1.42718222]
[1729564969615,0.35312646,2643.6,2643.3,1.64923223]
[1729564969834,3.78257,2643.7,2643.3,1.64923223]
[1729564970148,0.35310284,2643.6,2643.3,1.64923223]
[1729564970443,0.35310284,2643.5,2643.4,5.43223223]
[1729564970945,5.43132223,2644.1,2643.5,3.78282]
[1729564970946,7.56419,2644.1,2643.5,3.78282]
[1729564971243,4.70101675,2644.0,2643.7,1.64923223]
[1729564971449,0.91879675,2643.9,2643.6,1.64923223]
[1729564971751,0.35338336,2643.8,2643.7,1.64923223]
[1729564971916,0.35338336,2643.8,2643.6,5.43193223]
[1729564972104,0.35338336,2643.7,2643.6,6.05548545]
[1729564972344,0.35338095,2643.7,2643.6,6.05548545]
[1729564972665,3.78209,2644.1,2643.6,6.05548545]
[1729564972870,0.35338053,2644.0,2643.6,5.43193223]
[1729564973179,0.9187884,2643.9,2643.6,5.43193223]
[1729564973379,0.9187884,2643.8,2643.6,5.43193223]
[1729564973681,0.35338053,2643.7,2643.6,5.43193223]
[1729564975170,0.56541212,2644.1,2643.6,6.23523223]
[1729564975355,0.91881249,2644.0,2643.8,1.64923223]
[1729564975557,0.35338942,2643.9,2643.8,3.78243]
[1729564976065,0.35347758,2643.9,2643.8,3.78243]
[1729564976785,0.35347758,2643.9,2643.7,5.43179223]
[1729564976989,0.35347758,2643.8,2643.7,5.43179223]
[1729564977155,0.56551618,2644.1,2643.7,6.49592378]
[1729564977480,0.8197,2644.2,2643.7,6.49592378]
[1729564977481,0.35345384,2644.0,2643.8,1.64923223]
[1729564977667,0.35345384,2643.9,2643.8,1.64923223]
[1729564978562,0.35345384,2643.9,2643.8,5.43166223]
[1729564979766,0.56556033,2644.1,2643.7,1.06413155]
[1729564979767,3.78203,2644.1,2643.7,1.06413155]
[1729564979967,0.35337425,2643.9,2643.7,5.43174223]
[1729564980282,3.78187,2644.2,2643.7,5.43174223]
[1729564980487,0.91876138,2644.1,2643.8,5.43165223]
[1729564980647,0.35336976,2644.0,2643.9,1.64923223]
[1729564980993,0.35336976,2644.0,2643.8,5.43165223]
[1729564981157,0.35336976,2643.9,2643.8,6.49575077]
[1729564981566,0.7609,2644.5,2644.0,3.78214]
[1729564981779,0.91881793,2644.4,2644.2,1.64923223]
[1729564981959,0.35339151,2644.3,2644.2,1.64923223]
[1729564982351,4.54243,2644.5,2644.0,1.64923223]
[1729564982593,0.91867199,2644.4,2644.0,1.64923223]
[1729564982893,0.35333193,2644.3,2644.1,0.05035326]
[1729564983103,0.35333193,2644.2,2644.1,0.05035326]
[1729564983251,4.54243,2644.5,2644.1,0.05035326]
[1729564983456,0.35328246,2644.4,2644.1,0.05035326]
[1729564983688,4.54243,2644.5,2644.1,0.05035326]
[1729564983689,0.35328246,2644.3,2644.1,1.69958549]
[1729564983993,4.54243,2644.5,2644.1,0.05035326]
[1729564984352,0.35328405,2644.4,2644.1,0.05035326]
[1729564984665,0.35328405,2644.3,2644.1,0.05035326]
[1729564984875,4.54234,2644.5,2644.1,1.69958549]
[1729564985174,0.35324744,2644.4,2644.1,1.69958549]
[1729564985390,0.35324744,2644.3,2644.2,1.64923223]
[1729564985901,0.35324744,2644.3,2644.2,0.05020109]
[1729564986258,0.35320673,2644.3,2644.2,0.05020109]
[1729564987074,0.35320673,2644.3,2644.1,1.64923223]
[1729564987403,0.7609,2644.5,2644.2,0.05019349]
[1729564987585,0.35313585,2644.4,2644.2,0.05019349]
[1729564987792,0.35313585,2644.3,2644.2,0.05019349]
[1729564988705,4.54234,2644.5,2644.2,0.05019349]
[1729564988877,0.35312537,2644.4,2644.2,0.05019349]
[1729564989078,4.54234,2644.5,2644.2,0.05019349]
[1729564989278,0.35309573,2644.4,2644.2,0.05019349]
[1729564989477,4.54234,2644.5,2644.0,5.43135223]
[1729564989673,0.35309509,2644.4,2644.3,0.05015545]
[1729564989886,0.35309509,2644.4,2644.0,5.43135223]
[1729564990101,4.54234,2644.5,2644.3,0.05007938]
[1729564990281,0.35309754,2644.4,2644.1,1.64923223]
[1729564990481,4.54234,2644.5,2644.1,1.64923223]
[1729564990669,0.3530729,2644.4,2644.1,1.64923223]
[1729564990874,4.54234,2644.5,2644.0,5.43135223]
[1729564991073,0.35307052,2644.4,2644.0,5.43135223]
[1729564991387,4.54234,2644.5,2644.0,5.43135223]
[1729564991573,0.35305265,2644.4,2644.1,1.64923223]
[1729564991772,4.54234,2644.5,2644.1,1.64923223]
[1729564992103,0.35305439,2644.4,2644.1,1.64923223]
[1729564992311,4.54234,2644.5,2644.1,1.64923223]
[1729564992484,0.35305172,2644.4,2644.1,1.64923223]
[1729564992684,4.54234,2644.5,2644.1,1.64923223]
[1729564992914,0.35304838,2644.4,2644.1,1.64923223]
[1729564993083,4.54234,2644.5,2644.1,1.64923223]
[1729564993285,0.35304653,2644.4,2644.1,1.64923223]
[1729564993482,4.54234,2644.5,2644.1,1.64923223]
[1729564993683,0.35304915,2644.4,2644.1,1.64923223]
[1729564993885,4.54234,2644.5,2644.1,1.64923223]
[1729564994180,0.35306481,2644.4,2644.1,1.64923223]
[1729564994385,4.54234,2644.5,2644.1,1.64923223]
[1729564994584,0.35307508,2644.4,2644.1,1.64923223]
[1729564994811,4.54234,2644.5,2644.1,1.64923223]
[1729564995115,0.35305869,2644.4,2644.1,1.64923223]
[1729564995319,0.7609,2644.5,2644.1,1.64923223]
[1729564995478,0.35306444,2644.4,2644.1,2.44723223]
[1729564995685,0.7609,2644.5,2644.1,2.44723223]
[1729564995880,0.35306654,2644.4,2644.1,2.44723223]
[1729564996080,0.7609,2644.5,2644.1,2.44723223]
[1729564996313,0.3530867,2644.4,2644.1,2.44723223]
[1729564996618,0.7609,2644.5,2644.1,2.44723223]
[1729564996810,0.35308611,2644.4,2644.1,2.44723223]
[1729564997005,0.7609,2644.5,2644.1,2.44723223]
[1729564997205,0.35309616,2644.4,2644.1,2.44723223]
[1729564997417,4.54234,2644.5,2644.1,2.44723223]
[1729564997588,0.35308683,2644.4,2644.1,2.44723223]
[1729564997789,4.54234,2644.5,2644.2,0.04803348]
[1729564998129,0.35308608,2644.4,2644.2,0.04803348]
[1729564998302,4.54234,2644.5,2644.2,0.04803348]
[1729564998490,0.35308967,2644.4,2644.2,0.04803348]
[1729564998695,0.7609,2644.5,2644.2,0.04803348]
[1729564998897,0.35309001,2644.4,2644.2,0.04803348]
[1729564999100,0.7609,2644.5,2644.2,0.04803348]
[1729564999298,0.3530811,2644.4,2644.3,1.64923223]
[1729564999499,3.78136,2644.6,2644.2,1.69726571]
[1729564999822,0.35308527,2644.5,2644.3,0.04803348]
[1729565000023,0.35308527,2644.4,2644.3,0.04803348]
[1729565000335,0.35308527,2644.4,2644.1,6.22914223]
[1729565000546,3.78136,2644.6,2644.3,0.04803348]
[1729565000695,0.35307642,2644.5,2644.1,6.22914223]
[1729565001035,0.3530775,2644.4,2644.2,5.43098223]
[1729565001194,3.80000138,2644.8,2644.4,3.78154]
[1729565001195,0.01891138,2644.8,2644.4,3.78154]
[1729565001398,0.8254,2644.9,2644.5,4.58955]
[1729565001596,3.78081,2645.0,2644.5,0.8082]
[1729565001944,0.35302439,2644.9,2644.6,0.04803348]
[1729565002241,0.35302439,2644.8,2644.6,1.69726571]
[1729565002454,3.78081,2645.0,2644.6,1.69726571]
[1729565002657,0.35293793,2644.9,2644.6,1.69726571]
[1729565002815,0.35293793,2644.8,2644.6,1.69726571]
[1729565003015,3.78081,2645.0,2644.6,1.69726571]
[1729565003249,0.35293511,2644.9,2644.6,1.69726571]
[1729565003437,0.35293511,2644.8,2644.6,1.69726571]
[1729565003755,3.78081,2645.0,2644.6,1.69726571]
[1729565003927,0.35289834,2644.9,2644.6,1.69726571]
[1729565004138,0.35289834,2644.8,2644.6,1.69726571]
[1729565004433,3.78081,2645.0,2644.6,1.69726571]
[1729565004638,0.35285583,2644.9,2644.6,1.69726571]
[1729565004810,3.78081,2645.0,2644.6,1.69726571]
[1729565005010,0.35284274,2644.9,2644.6,1.69726571]
[1729565005269,0.7614,2645.1,2644.8,1.64923223]
[1729565005425,3.78051,2645.2,2644.8,1.64923223]
[1729565005752,0.35281309,2645.1,2645.0,1.64923223]
[1729565006109,0.35281309,2645.1,2645.0,1.69675617]
[1729565006315,3.78021,2645.4,2645.0,1.69675617]
[1729565006527,0.35275185,2645.3,2645.1,1.64923223]
[1729565006751,4.59401,2645.5,2645.1,1.64923223]
[1729565007055,0.35274807,2645.4,2645.2,0.04752394]
[1729565007352,0.35274807,2645.3,2645.2,0.04752394]
[1729565007944,0.35274807,2645.3,2645.0,1.64923223]
[1729565008151,7.5604,2645.4,2645.0,1.64923223]
[1729565008452,0.35257328,2645.3,2645.1,0.04752394]
[1729565008652,7.56041,2645.4,2645.1,1.69675617]
[1729565008954,0.35257422,2645.3,2645.1,0.04752394]
[1729565009262,3.78017,2645.4,2645.1,1.69675617]
[1729565009884,0.814,2645.5,2645.2,1.64923223]
[1729565010043,0.35251181,2645.4,2645.2,1.64923223]
[1729565010249,0.814,2645.5,2645.2,1.64923223]
[1729565010553,3.77993,2645.6,2645.3,1.69675617]
[1729565010758,3.77993,2645.6,2645.3,0.04752394]
[1729565011065,3.78,2645.5,2645.3,0.04752394]
[1729565012377,3.78,2645.5,2645.4,0.04726543]
[1729565012541,3.78,2645.5,2645.1,2.41403223]
[1729565012742,3.78,2645.5,2645.2,0.04726543]
[1729565015144,3.77993,2645.6,2645.2,0.04726543]
[1729565015347,7.55991,2645.6,2645.2,0.04726543]
[1729565016789,3.77993,2645.6,2645.2,0.04726543]
[1729565018661,3.77993,2645.6,2645.2,1.69649766]
[1729565019690,3.77993,2645.6,2645.2,0.04726543]
[1729565019995,3.78003,2645.5,2645.2,0.04726543]
[1729565020652,3.77993,2645.6,2645.2,0.04726543]
[1729565020853,3.77993,2645.6,2645.2,1.69649766]
[1729565021376,3.77993,2645.6,2645.2,0.04726543]
[1729565022271,7.55988,2645.6,2645.2,0.04726543]
[1729565022996,3.77993,2645.6,2645.2,0.04726543]
[1729565023501,3.77993,2645.6,2645.2,1.69649766]
[1729565023806,4.58935,2645.7,2645.3,1.64923223]
[1729565024154,4.58935,2645.7,2645.4,0.04681686]
[1729565024562,4.58935,2645.7,2645.2,1.64923223]
[1729565024894,4.58935,2645.7,2645.3,0.04681686]
[1729565025760,4.58935,2645.7,2645.3,1.69604909]
[1729565026057,4.58935,2645.7,2645.3,0.04681686]
[1729565026256,4.58935,2645.7,2645.3,1.69604909]
[1729565026859,4.58935,2645.7,2645.3,0.04681686]
[1729565027395,3.78002,2645.5,2645.3,0.04681686]
[1729565027601,3.78002,2645.5,2645.1,0.7648]
[1729565027752,3.78002,2645.5,2645.2,0.04681686]
[1729565030191,3.7799,2645.6,2645.2,0.04681686]
[1729565030353,7.55989,2645.6,2645.2,0.04681686]
[1729565030755,3.7799,2645.6,2645.2,0.04681686]
[1729565037478,0.8096,2645.7,2645.2,3.82722686]
[1729565037681,3.77964,2645.8,2645.3,3.78026]
[1729565037868,3.77964,2645.8,2645.3,5.42949223]
[1729565038073,3.77964,2645.8,2645.4,0.04683966]
[1729565038499,3.77964,2645.8,2645.4,0.80033966]
[1729565038678,7.55929,2645.8,2645.4,0.80033966]
[1729565039010,3.77964,2645.8,2645.4,0.80033966]
[1729565039566,7.55933,2645.8,2645.4,0.80033966]
[1729565040205,0.35243337,2645.7,2645.4,0.80033966]
[1729565040410,3.77964,2645.8,2645.4,0.80033966]
[1729565040564,4.13220522,2645.7,2645.4,0.80033966]
[1729565040870,3.77972,2645.7,2645.4,0.80033966]
[1729565043264,0.35270062,2645.6,2645.4,0.80033966]
[1729565043474,6.25578223,2645.9,2645.4,0.80033966]
[1729565043670,0.35270881,2645.8,2645.4,0.80033966]
[1729565043977,0.35270881,2645.7,2645.4,0.80033966]
[1729565044173,0.35270881,2645.6,2645.4,0.80033966]
[1729565044368,3.77965,2645.8,2645.4,0.80033966]
[1729565044679,0.35281345,2645.7,2645.4,0.80033966]
[1729565044882,0.35281345,2645.6,2645.4,0.80033966]
[1729565045107,3.77973,2645.7,2645.4,0.80033966]
[1729565045282,0.3529339,2645.6,2645.4,0.80033966]
[1729565045477,3.77973,2645.7,2645.4,0.80033966]
[1729565045898,0.35293453,2645.6,2645.4,0.80033966]
[1729565046122,3.77973,2645.7,2645.4,0.80033966]
[1729565046276,0.3530567,2645.6,2645.4,0.80033966]
[1729565047214,3.77973,2645.7,2645.4,0.80033966]
[1729565047215,0.3530567,2645.5,2645.4,0.80033966]
[1729565049826,0.3530567,2645.5,2645.4,6.85271008]
[1729565049986,0.77521138,2646.1,2645.7,0.7871]
[1729565050174,0.3533822,2646.0,2645.8,0.04662682]
[1729565050493,0.3533822,2645.9,2645.7,0.7871]
[1729565050672,0.3533822,2645.8,2645.7,1.243784]
[1729565050873,0.3533822,2645.8,2645.7,2.89301623]
[1729565051117,0.3533822,2645.8,2645.7,1.243784]
[1729565052215,0.3533822,2645.8,2645.7,2.89301623]
[1729565052429,0.3533822,2645.8,2645.7,1.243784]
[1729565053512,0.3533822,2645.8,2645.7,2.89301623]
[1729565057916,0.3533822,2645.8,2645.7,2.93772553]
[1729565059942,4.1329522,2645.8,2645.7,0.0447093]
[1729565060145,4.9575522,2645.8,2645.7,0.0447093]
[1729565060353,4.9575522,2645.8,2645.4,1.64923223]
[1729565060535,4.60417,2645.8,2645.7,0.04451171]
[1729565060846,4.95742356,2645.8,2645.7,0.04451171]
[1729565061146,4.95742356,2645.8,2645.4,1.64923223]
[1729565061350,4.60417,2645.8,2645.7,0.04451171]
[1729565061648,1.1778592,2645.8,2645.7,0.04451171]
[1729565061802,1.1778592,2645.8,2645.4,5.42936223]
[1729565062002,0.3532592,2645.7,2645.5,0.04451171]
[1729565062248,0.3532592,2645.6,2645.5,0.04451171]
[1729565063622,0.3532592,2645.6,2645.5,3.82451171]
[1729565064126,0.3532592,2645.6,2645.5,0.04451171]
[1729565064949,0.3532592,2645.6,2645.5,5.47374394]
[1729565068311,0.8246,2645.8,2645.5,5.47374394]
[1729565068550,0.35330025,2645.6,2645.5,5.47374394]
[1729565069134,0.35330025,2645.7,2645.5,5.47374394]
[1729565069333,0.35330025,2645.6,2645.5,5.47374394]
[1729565069520,0.35330025,2645.9,2645.5,5.47374394]
[1729565069712,0.35330025,2645.8,2645.5,5.47374394]
[1729565070032,0.35330025,2645.7,2645.5,5.46252461]
[1729565070352,4.58017,2646.0,2645.6,1.64923223]
[1729565070558,0.35330908,2645.9,2645.5,5.46252461]
[1729565070712,0.35330908,2645.8,2645.7,0.03339877]
[1729565070908,0.35330908,2645.8,2645.5,1.64923223]
[1729565071141,5.58101822,2646.0,2645.7,0.03339877]
[1729565071444,5.58101822,2646.0,2645.5,1.64923223]
[1729565071445,0.35330831,2645.9,2645.5,1.64923223]
[1729565071651,0.35330831,2645.8,2645.5,1.64923223]
[1729565071853,0.35330831,2645.7,2645.5,1.64923223]
[1729565072066,0.55810182,2645.9,2645.5,1.64923223]
[1729565072206,0.35331026,2645.8,2645.5,1.64923223]
[1729565072412,0.35330761,2645.7,2645.5,1.64923223]
[1729565072648,0.35330761,2645.6,2645.5,1.64923223]
[1729565075067,0.35330761,2645.6,2645.4,9.20934223]
[1729565075235,4.58017,2646.0,2645.4,9.62454133]
[1729565075556,4.58017,2646.0,2645.3,0.8069]
[1729565075557,0.35334007,2645.9,2645.3,6.23641223]
[1729565075719,0.35334007,2645.8,2645.4,5.42936223]
[1729565075919,0.35334007,2645.7,2645.4,5.42936223]
[1729565076121,0.35334007,2645.6,2645.4,5.42936223]
[1729565076356,0.35334007,2645.5,2645.4,5.42936223]
[1729565076952,0.35334007,2645.8,2645.4,5.42936223]
[1729565077152,0.35334007,2645.7,2645.4,5.42936223]
[1729565077344,0.35334007,2645.6,2645.4,5.42936223]
[1729565077520,0.35334007,2645.5,2645.4,5.42936223]
[1729565078130,0.35334007,2645.8,2645.4,5.42936223]
[1729565078423,0.35334007,2645.7,2645.4,5.42936223]
[1729565078625,0.35334007,2645.6,2645.4,5.42936223]
[1729565078932,0.35334007,2645.5,2645.4,5.42936223]
[1729565080151,0.35334007,2645.9,2645.4,5.42936223]
[1729565080364,0.35334007,2645.8,2645.4,5.42936223]
[1729565080523,0.35334007,2645.7,2645.4,5.42936223]
[1729565080725,0.35334007,2645.6,2645.4,6.43101645]
[1729565081071,0.35334007,2645.5,2645.4,6.43101645]
[1729565081820,0.30334007,2645.5,2645.4,6.43101645]
[1729565082169,8.35955,2646.0,2645.4,6.43101645]
[1729565082964,3.7795,2645.9,2645.4,2.65088645]
[1729565083165,3.7795,2645.9,2645.4,1.64923223]
[1729565083166,4.78039022,2645.9,2645.4,1.64923223]
[1729565083772,4.78039022,2645.9,2645.3,10.01652223]
[1729565083920,0.7916,2645.7,2645.3,0.8069]
[1729565084121,2.44083223,2645.7,2645.1,0.8208]
[1729565084452,3.78,2645.5,2645.1,2.47003223]
[1729565085153,0.7916,2645.7,2645.1,2.47003223]
[1729565085348,4.57145,2645.7,2645.1,2.47003223]
[1729565085548,3.7799,2645.6,2645.1,2.47003223]
[1729565087356,3.7799,2645.6,2645.1,6.25056223]
[1729565087782,3.7799,2645.6,2645.2,1.64923223]
[1729565088258,3.7799,2645.6,2645.1,6.25056223]
[1729565089654,3.7799,2645.6,2645.2,1.64923223]
[1729565089856,3.78,2645.5,2645.1,2.47003223]
[1729565090559,3.78017,2645.4,2644.9,12.16642]
[1729565090757,3.78017,2645.4,2644.9,13.81565223]
[1729565090999,3.78057,2645.1,2644.7,0.7737]
[1729565091502,6.20173223,2645.3,2644.7,2.42293223]
[1729565091682,4.5525,2645.3,2644.8,5.43023223]
[1729565091849,0.7721,2645.3,2644.9,1.64923223]
[1729565093755,0.35305067,2645.2,2644.9,1.64923223]
[1729565093956,0.35305067,2645.1,2644.9,1.64923223]
[1729565094169,0.7721,2645.3,2644.9,1.64923223]
[1729565094588,0.35300226,2645.2,2644.9,1.64923223]
[1729565094802,0.35300254,2645.1,2644.8,5.43023223]
[1729565095107,0.7721,2645.3,2644.9,1.64923223]
[1729565095284,0.35294499,2645.2,2644.9,1.64923223]
[1729565095461,0.35294499,2645.1,2644.9,1.64923223]
[1729565095661,0.7721,2645.3,2644.9,1.64923223]
[1729565095856,0.35294487,2645.2,2644.9,1.64923223]
[1729565096091,0.35294487,2645.1,2644.9,1.64923223]
[1729565096271,4.55238,2645.3,2644.9,1.64923223]
[1729565096457,0.35289624,2645.2,2644.9,1.64923223]
[1729565096658,0.35289624,2645.1,2644.9,1.64923223]
[1729565096859,4.55238,2645.3,2644.9,1.64923223]
[1729565097082,0.35290117,2645.2,2644.9,1.64923223]
[1729565097362,0.35290117,2645.1,2644.8,5.43023223]
[1729565097564,4.55238,2645.3,2644.8,5.43023223]
[1729565097761,0.3528623,2645.2,2644.8,1.64923223]
[1729565097997,0.3528623,2645.1,2644.8,1.64923223]
[1729565098236,3.78051,2645.2,2644.8,1.64923223]
[1729565098520,0.35286594,2645.1,2644.8,1.64923223]
[1729565098680,3.78051,2645.2,2644.8,1.64923223]
[1729565098854,0.35283542,2645.1,2644.8,1.64923223]
[1729565099058,3.78051,2645.2,2644.8,1.64923223]
[1729565099992,0.35279087,2645.1,2644.8,1.64923223]
[1729565100170,3.78051,2645.2,2644.8,1.64923223]
[1729565100373,0.35279329,2645.1,2644.8,1.64923223]
[1729565100607,3.78069,2645.1,2644.7,0.7737]
[1729565100911,3.78108,2644.8,2644.4,0.7658]
[1729565101208,3.78137,2644.6,2644.1,2.41503223]
[1729565101356,3.78137,2644.6,2644.1,0.7658]
[1729565101902,4.56597,2644.4,2644.1,0.7658]
[1729565102061,4.56597,2644.4,2644.1,2.41503223]
[1729565102265,4.56597,2644.4,2644.0,1.64923223]
[1729565102485,4.56597,2644.4,2644.1,1.64923223]
[1729565104503,3.78134,2644.6,2644.3,1.64923223]
[1729565104799,4.56304,2644.6,2644.3,1.64923223]
[1729565105904,0.7817,2644.6,2644.3,1.64923223]
[1729565106087,4.56299,2644.6,2644.2,1.64923223]
[1729565106408,8.3444,2644.6,2644.2,1.64923223]
[1729565106871,4.56299,2644.6,2644.2,1.64923223]
[1729565107079,3.78143,2644.5,2644.2,1.64923223]
[1729565107263,4.56299,2644.6,2644.2,1.64923223]
[1729565108308,8.34436,2644.6,2644.2,1.64923223]
[1729565108603,4.56299,2644.6,2644.2,1.64923223]
[1729565110095,3.78152,2644.5,2644.1,1.64923223]
[1729565110266,4.56659,2644.3,2643.9,0.7658]
[1729565110465,4.56659,2644.3,2643.9,2.41503223]
[1729565110707,4.56659,2644.3,2644.0,1.64923223]
[1729565110894,4.56659,2644.3,2643.9,2.41503223]
[1729565111095,4.56659,2644.3,2643.9,0.7658]
[1729565111419,3.7819,2644.2,2643.7,4.57847]
[1729565111633,3.7819,2644.2,2643.7,3.78247]
[1729565112140,3.78202,2644.1,2643.6,3.79]
[1729565112291,3.7823,2643.9,2643.6,3.79]
[1729565112491,3.7823,2643.9,2643.4,6.18362223]
[1729565112722,3.7823,2643.9,2643.5,1.64923223]
[1729565114095,3.7823,2643.9,2643.1,3.78418]
[1729565114096,1.64923223,2643.6,2643.1,3.78418]
[1729565114430,4.54436,2643.3,2643.1,0.0008]
[1729565114731,3.78329,2643.2,2643.1,0.0008]
[1729565116633,3.78329,2643.2,2643.1,0.03475034]
[1729565116832,3.78329,2643.2,2643.1,0.0008]
[1729565117033,3.78329,2643.2,2643.1,0.03656828]
[1729565117238,4.78096322,2643.2,2643.1,0.0008]
[1729565117537,6.43019545,2643.2,2643.1,0.0008]
[1729565117741,9.43019545,2643.2,2643.1,0.0008]
[1729565118030,10.26129545,2643.2,2643.1,0.0008]
[1729565119703,10.26129545,2643.2,2643.1,0.03568145]
[1729565120495,8.61206322,2643.2,2643.1,0.03568145]
[1729565122508,10.26129545,2643.2,2643.1,0.03568145]
[1729565123659,12.46052768,2643.2,2643.1,0.03568145]
[1729565124140,12.46052768,2643.2,2643.1,0.0008]
[1729565124438,9.16206322,2643.2,2643.1,0.0008]
[1729565124592,10.81129545,2643.2,2643.1,0.0008]
[1729565125597,10.26129545,2643.2,2643.1,0.0008]
[1729565126007,10.26129545,2643.2,2643.1,0.03598587]
[1729565127396,10.26129545,2643.2,2643.1,0.0008]
[1729565129058,10.26129545,2643.2,2643.1,0.03598587]
[1729565129244,10.26129545,2643.2,2643.1,0.0008]
[1729565129447,10.26129545,2643.2,2643.1,0.036374]
[1729565129739,10.26129545,2643.2,2643.1,0.0008]
[1729565130109,10.26129545,2643.2,2643.1,0.036374]
[1729565130329,10.26129545,2643.2,2643.1,0.0008]
[1729565130728,8.61206322,2643.2,2643.1,0.0008]
[1729565131758,10.26129545,2643.2,2643.1,0.0008]
[1729565132141,10.26129545,2643.2,2643.1,0.036374]
[1729565132347,10.26129545,2643.2,2643.1,0.0008]
[1729565135144,8.61206322,2643.2,2643.1,0.0008]
[1729565135447,10.26129545,2643.2,2643.1,0.036374]
[1729565135655,10.26129545,2643.2,2643.1,0.0008]
[1729565136156,8.61206322,2643.2,2643.1,0.036374]
[1729565136735,10.26129545,2643.2,2643.1,0.036374]
[1729565138030,10.26129545,2643.2,2643.1,0.0008]
[1729565139361,11.91052768,2643.2,2643.1,0.0008]
[1729565139563,12.46052768,2643.2,2643.1,0.0008]
[1729565140139,10.81129545,2643.2,2643.1,0.0008]
[1729565140353,12.46052768,2643.2,2643.1,0.0008]
[1729565140953,10.81129545,2643.2,2643.1,0.0008]
[1729565142231,11.98075232,2643.2,2643.1,0.0008]
[1729565146263,12.33189961,2643.2,2643.1,0.0008]
[1729565146490,11.98075232,2643.2,2643.1,0.0008]
[1729565147879,12.33209243,2643.2,2643.1,0.0008]
[1729565150198,11.98075232,2643.2,2643.1,0.0008]
[1729565150365,12.33249536,2643.2,2643.1,0.0008]
[1729565151361,13.98172759,2643.2,2643.1,0.0008]
[1729565151689,12.81227072,2643.2,2643.1,0.0008]
[1729565152187,11.16303849,2643.2,2643.1,0.0008]
[1729565152991,12.81227072,2643.2,2643.1,0.0008]
[1729565153359,11.16303849,2643.2,2643.1,0.0008]
[1729565154490,11.16334186,2643.2,2643.1,0.0008]
[1729565155787,9.51410963,2643.2,2643.1,0.0008]
[1729565155993,11.16334186,2643.2,2643.1,0.0008]
[1729565157790,10.81129545,2643.2,2643.1,0.0008]
[1729565158168,11.16360051,2643.2,2643.1,0.03672417]
[1729565158357,11.16360051,2643.2,2643.1,0.0008]
[1729565158552,10.61360051,2643.2,2643.1,0.0008]
[1729565158752,10.61360051,2643.2,2643.1,0.03672417]
[1729565159786,8.78482729,2643.2,2643.1,0.03672417]
[1729565161107,8.43252223,2643.2,2643.1,0.03672417]
[1729565161258,10.10728194,2643.2,2643.1,0.03672417]
[1729565161457,7.89804971,2643.2,2643.1,0.03672417]
[1729565161765,11.74651417,2643.2,2643.1,0.0008]
[1729565162098,13.30048059,2643.2,2643.1,0.0008]
[1729565162309,11.65124836,2643.2,2643.1,0.0008]
[1729565162487,13.30048059,2643.2,2643.1,0.0008]
[1729565164312,11.65124836,2643.2,2643.1,0.0008]
[1729565164518,11.65141222,2643.2,2643.1,0.0008]
[1729565168274,11.65138199,2643.2,2643.1,0.0008]
[1729565169718,7.89818334,2643.2,2643.1,0.0008]
[1729565169952,8.78571557,2643.2,2643.1,0.0008]
[1729565170622,8.78571557,2643.2,2643.1,0.03682317]
[1729565170823,7.13648334,2643.2,2643.1,0.0008]
[1729565170980,7.13648334,2643.2,2643.1,0.03682317]
[1729565171187,7.13648334,2643.2,2643.1,0.0008]
[1729565171382,8.78571557,2643.2,2643.1,0.03682317]
[1729565171592,7.13648334,2643.2,2643.1,0.0008]
[1729565171817,0.35319334,2643.2,2643.1,2.72544862]
[1729565171995,3.78315,2643.3,2643.1,1.07621639]
[1729565172193,0.35321006,2643.2,2643.1,0.83172317]
[1729565173621,0.35321006,2643.2,2643.1,2.4809554]
[1729565173915,0.35321006,2643.2,2643.1,0.83172317]
[1729565174520,4.13650006,2643.2,2643.1,0.83172317]
[1729565175719,3.78329,2643.2,2643.1,0.83172317]
[1729565175886,4.13637023,2643.2,2643.1,0.83172317]
[1729565179634,9.74227581,2643.2,2643.1,0.03682317]
[1729565179922,10.52207581,2643.2,2643.1,0.03682317]